[Event "1st Rio Chess Open 2022"]
[Site "Rio de Janeiro"]
[Date "2022.04.23"]
[Round "4.6"]
[White "Oliveira, Tiago Batista"]
[Black "Rangel, Daniel"]
[Result "0-1"]
[ECO "E94"]
[WhiteElo "2033"]
[BlackElo "2207"]
[Annotator "TA"]
[PlyCount "84"]
[EventDate "2022.04.18"]
[EventType "swiss"]
[EventCountry "BRA"]
[SourceTitle "playchess.com"]
[Source "ChessBase"]
[SourceQuality "1"]
[TimeControl "5400+30"]

{[%evp 18,84,0,-2,6,0,0,0,20,-8,0,-37,-28,-29,-29,-35,-31,-28,-22,-33,-35,-98,-104,-93,-96,-92,-113,-148,-143,-141,-137,-140,-129,-126,-108,-108,-106,-98,-92,-170,-106,-162,-173,-179,-168,-172,-171,-247,-252,-413,-413,-413,-397,-461,-458,-553,-545,-720,-716,-676,-562,-519,-530,-648,-646,-919,-893,-822,-796]} 1. Nf3 {[%emt 1:31:00]} Nf6 {[%emt 1:31:00]} 2. d4 {[%emt 0:00:30]} g6 {[%emt 0:00:30]} 3. c4 {[%emt 0:00:30]} Bg7 {[%emt 0:00:30]} 4. Nc3 {[%emt 0:00:30]} O-O {[%emt 0:00:30]} 5. e4 {[%emt 0:00:30]} d6 {[%emt 0:00:30]} 6. Be2 {[%emt 0:00:30]} e5 {[%emt 0:00:30]} 7. Be3 {[%emt 0:00:30]} Na6 {[%emt 0:00:30]} 8. dxe5 {[%emt 0:00:30]} dxe5 {[%emt 0:00:30]} 9. Qxd8 {[%emt 0:00:30]} Rxd8 {[%emt 0:00:30]} 10. O-O {[%emt 0:00:30]} Ng4 {[%emt 0:00:30][%cal Bf6g4,Bg4h6,Bh6f7,Bf7d6][%mdl 32] E94: King's Indian: Classical: 6 Be2 e5 7 0-0: Various Black 7th moves.} (10... b6 $5 {[%cal Rc8b7]}) 11. Bg5 {[%emt 0:00:30]} (11. Rfd1 {feels hotter.} Rxd1+ 12. Rxd1 Nxe3 13. Rd8+) 11... f6 {[%emt 0:00:30]} 12. Bd2 {[%emt 0:00:30]} Be6 {[%emt 0:00:30] The position is equal.} 13. h3 {[%emt 0:00:30]} Nh6 {[%emt 0:00:30] [#]} 14. Nd5 $146 {[%emt 0:00:30]} ({Predecessor:} 14. Be3 Nf7 15. Rad1 Bh6 16. Bxh6 Nxh6 17. Rxd8+ Rxd8 18. Rd1 Rxd1+ 19. Nxd1 Nf7 20. Nc3 {0-1 (32) Prieto Aranguren,A (2289)-Grigoryan,K (2601) Getxo 2019}) 14... Nf7 {[%emt 0:00:30]} 15. Be3 {[%emt 0:00:30]} Nd6 {[%emt 0:00:30]} 16. Nd2 {[%emt 0:00:30]} c6 {[%emt 0:00:30]} 17. Nc3 {[%emt 0:00:30]} Nb4 {[%emt 0:00:30]} 18. Rac1 {[%emt 0:00:30] Against Nc2} Nf7 {[%emt 0:00:30]} 19. Na4 {[%emt 0:00:30]} (19. Nf3 $15) 19... Nxa2 $17 {[%emt 0:00:30]} 20. Ra1 {[%emt 0:00:30] [#] Hoping for Nc5.} Nb4 {[%emt 0:00:30] ...Nc2 is the strong threat.} 21. Nc5 {[%emt 0:00:30][%csl LRb7,LRe6]} Bc8 {[%emt 0:00:30]} 22. Rfc1 {[%emt 0:00:30] Inhibits Nc2.} b6 {[%emt 0:00:30]} 23. Ncb3 {[%emt 0:00:30][%cal Oe3b6]} c5 {[%emt 0:00:30] aiming for ...Bb7.} 24. Nb1 {[%emt 0:00:30]} Nc6 {[%emt 0:00:30]} 25. Nc3 {[%emt 0:00:30]} Nd4 {[%emt 0:00:30]} 26. Bxd4 {[%emt 0:00:30]} exd4 {[%emt 0:00:30]} 27. Nd5 {[%emt 0:00:30]} Bb7 $36 {[%emt 0:00:30][%cal Bc8b7,Bb7e4,Be4c2][%mdl 2080] Strongly threatening ...f5. Black is in control.} 28. Nc7 {[%emt 0:00:30] [#]} (28. Re1 $17) 28... Rac8 {[%emt 0:00:30]} ({Weaker is} 28... Bxe4 29. Nxa8 Rxa8 30. Nd2 $17) ({Better is} 28... Rab8 $1 $19 {Threatens to win with ...Bh6.} 29. Nd5 Re8) 29. Ne6 {[%emt 0:00:30]} (29. Nd5 $17 {is a better defense.}) 29... Re8 $19 {[%emt 0:00:30]} ({Stronger than} 29... Bxe4 30. Nxd8 Rxd8 31. Nd2 $15) 30. Nxg7 {[%emt 0:00:30]} Kxg7 {[%emt 0:00:30]} 31. Rxa7 {[%emt 0:00:30]} Bxe4 {[%emt 0:00:30]} ({Don't do} 31... Rxe4 32. Bf3 Bc6 33. Bxe4 Bxe4 34. Nd2 $16) 32. Bf1 {[%emt 0:00:30]} (32. f3 $142 Ra8 33. Rxf7+ Kxf7 34. fxe4) 32... Ra8 {[%emt 0:00:30]} 33. Rca1 {[%emt 0:00:30]} (33. Rc7 {is the only way for White.}) 33... Rxa7 {[%emt 0:00:30]} 34. Rxa7 {[%emt 0:00:30]} Bc2 {[%emt 0:00:30]} 35. Nd2 {[%emt 0:00:30]} Re1 {[%emt 0:00:30] Black is clearly winning.} 36. Nf3 {[%emt 0:00:30]} Rb1 {[%emt 0:00:30]} 37. Rb7 {[%emt 0:00:30]} Bd3 {[%emt 0:00:30]} 38. Nh2 {[%emt 0:00:30]} Bxf1 {[%emt 0:00:30]} 39. Nxf1 {[%emt 0:00:30]} Rxb2 {[%emt 0:00:30]} 40. Ng3 {[%emt 0:00:30]} f5 {[%emt 0:00:30] Prevents Ne4.} 41. Kf1 {[%emt 0:00:30]} Kf6 {[%emt 0:00:30]} 42. Ke1 {[%emt 0:00:30]} Ne5 {[%emt 0:00:30] Weighted Error Value: White=0.40/Black=0.09 (flawless)} 0-1

[Event "1st Rio Chess Open 2022"]
[Site "Rio de Janeiro"]
[Date "2022.04.24"]
[Round "5.1"]
[White "Rodriguez Vila, Andres"]
[Black "Ribeiro, Matheus Mendes Domin"]
[Result "1-0"]
[ECO "B40"]
[WhiteElo "2435"]
[BlackElo "2168"]
[Annotator "TA"]
[PlyCount "77"]
[EventDate "2022.04.18"]
[EventType "swiss"]
[EventCountry "BRA"]
[SourceTitle "playchess.com"]
[Source "ChessBase"]
[SourceQuality "1"]
[TimeControl "5400+30"]

{[%evp 12,77,8,-13,-22,-15,-8,-6,-11,-5,24,22,23,21,18,20,25,24,30,27,45,49,62,54,97,108,108,118,238,233,228,201,191,198,270,252,246,259,362,384,429,290,454,468,465,455,419,466,461,466,465,417,593,572,550,533,518,516,608,583,684,677,654,652,870,866,5010,-531]} 1. e4 {[%emt 0:00:23]} c5 {[%emt 0:00:16]} 2. Nc3 {[%emt 0:00:19]} e6 {[%emt 0:00:15][%cal Be7e6,Be6d5,Bd5d4][%mdl 32]} 3. Nf3 {[%emt 0:00:32]} Nc6 {[%emt 0:00:07]} 4. g3 {[%emt 0:00:06]} Nf6 {[%emt 0:07:22]} 5. Bg2 {[%emt 0:00:07]} d5 {[%emt 0:01:33]} 6. exd5 {[%emt 0:00:12]} exd5 {[%emt 0:01:55]} 7. O-O {[%emt 0:01:05]} d4 {[%emt 0:04:42] B40: Sicilian: 2...e6, Unusual lines.} 8. Re1+ {[%emt 0:00:05]} Be7 {[%emt 0:00:11]} 9. Ne2 {[%emt 0:00:03]} O-O {[%emt 0:01:03] The position is equal.} 10. d3 {[%emt 0:00:03]} Nd5 {[%emt 0:04:13]} 11. Nf4 {[%emt 0:01:32][%cal Of3d4]} Nxf4 {[%emt 0:02:17]} 12. Bxf4 {[%emt 0:00:03] [#]} Be6 $146 {[%emt 0:07:48]} ({Predecessor:} 12... Nb4 13. Ne5 Nd5 14. Bd2 Be6 15. c4 dxc3 16. bxc3 Qc7 17. c4 Nb4 18. a3 Nc6 19. Nxc6 bxc6 {½-½ (49) Galego,L (2467)-Kogan,A (2517) Lisbon 2001}) 13. Ne5 {[%emt 0:02:35]} Nxe5 {[%emt 0:01:44]} 14. Bxe5 {[%emt 0:00:02]} Bd6 {[%emt 0:05:50]} 15. Qh5 {[%emt 0:04:14]} Bxe5 {[%emt 0:02:25]} 16. Rxe5 {[%emt 0:00:24]} g6 {[%emt 0:03:45]} 17. Qh6 {[%emt 0:00:36]} Qd6 {[%emt 0:02:34] White leaves nothing to chance now.} 18. Rae1 {[%emt 0:01:57] Threatens to win with R5e4.} Rae8 {[%emt 0:02:46]} 19. Bxb7 {[%emt 0:02:18] &Bianco is more active.} Rb8 {[%emt 0:03:55] [#]} (19... Bd7 $16 20. Rxe8 Rxe8 21. Rxe8+ Bxe8) 20. Bd5 $1 $18 {[%emt 0:03:21][%cal Rd5e6][%mdl 512]} Rfe8 {[%emt 0:10:55]} (20... Bxd5 $2 {[#]} 21. Rh5 $3 {[%mdl 512]} gxh5 22. Qxd6 $18) 21. b3 {[%emt 0:01:23]} Bd7 {[%emt 0:03:26]} 22. Qf4 {[%emt 0:03:10]} ({Don't do} 22. Bxf7+ $6 Kxf7 23. Qxh7+ Kf8 $16) 22... Rf8 {[%emt 0:04:27] [#]} (22... Rxe5 $142 23. Rxe5 (23. Bxf7+ Kg7 $17) 23... Rf8) 23. Rf5 $3 {[%emt 0:08:09][%mdl 512]} Qxf4 {[%emt 0:02:15]} 24. Rxf4 {[%emt 0:00:03]} Kg7 {[%emt 0:07:19]} 25. Re7 $1 {[%emt 0:00:42][%csl LRd7,LRf7]} Bf5 {[%emt 0:00:23]} 26. Rxa7 {[%emt 0:01:16] aiming for g4.} Rbe8 {[%emt 0:05:12]} (26... Rbd8 {was worth a try.}) 27. g4 {[%emt 0:00:46]} Re5 {[%emt 0:00:40]} 28. Bc4 {[%emt 0:01:20]} ({Less strong is} 28. gxf5 Rxd5 29. fxg6 Kxg6 $18) 28... Be6 {[%emt 0:03:31]} 29. Bxe6 {[%emt 0:00:07]} Rxe6 {[%emt 0:00:02][%mdl 4096] Endgame KRR-KRR} 30. Rc7 {[%emt 0:00:08]} Re5 {[%emt 0:01:03]} 31. Kg2 {[%emt 0:01:01]} Kh6 {[%emt 0:00:42]} (31... h5 $142 32. a4 hxg4) 32. h4 {[%emt 0:00:30] White is clearly winning.} g5 {[%emt 0:00:57]} 33. hxg5+ {[%emt 0:00:33]} Kxg5 {[%emt 0:00:07]} 34. Kg3 {[%emt 0:00:22]} h5 {[%emt 0:00:39]} 35. gxh5 {[%emt 0:00:38]} Kxh5 {[%emt 0:00:02]} 36. Rcxf7 {[%emt 0:00:35]} Rg8+ {[%emt 0:00:54]} 37. Kf3 {[%emt 0:00:23]} Rgg5 {[%emt 0:00:19]} 38. R4f6 {[%emt 0:00:18][%cal Rf7h7]} Rg1 {[%emt 0:11:56]} 39. Rg7 $4 {[%emt 1:08:39][%mdl 40960] Weighted Error Value: White=0.10 (very precise) /Black=0.35. Loss on time!?} 1-0

[Event "1st Rio Chess Open 2022"]
[Site "Rio de Janeiro"]
[Date "2022.04.24"]
[Round "5.2"]
[White "Rangel, Daniel"]
[Black "Hoffman, Alejandro"]
[Result "0-1"]
[ECO "A70"]
[WhiteElo "2207"]
[BlackElo "2389"]
[Annotator "TA"]
[PlyCount "78"]
[EventDate "2022.04.18"]
[EventType "swiss"]
[EventCountry "BRA"]
[SourceTitle "playchess.com"]
[Source "ChessBase"]
[SourceQuality "1"]
[TimeControl "5400+30"]

{[%evp 24,78,22,0,0,0,0,-13,0,0,0,0,0,0,22,29,27,26,26,-20,-11,-17,-16,-12,-20,-32,-15,-26,-23,-121,-62,-69,-68,-65,-66,-70,-63,-42,-64,-47,-54,-261,-81,-515,-490,-4133,-2731,-1349,-905,-29986,-29986,-29986,-29985,-29985,-29986,-29986,-29987]} 1. d4 {[%emt 0:00:04]} c5 {[%emt 0:01:14]} 2. d5 {[%emt 0:00:17]} g6 {[%emt 0:00:21]} 3. c4 {[%emt 0:00:09]} d6 {[%emt 1:30:25]} 4. e4 {[%emt 0:01:00]} Bg7 {[%emt 0:00:00]} 5. Nc3 {[%emt 0:00:52]} Nf6 {[%emt 0:00:00]} 6. Nf3 {[%emt 0:00:50]} O-O {[%emt 0:00:00]} 7. Bd3 {[%emt 0:01:15]} e6 {[%emt 0:00:00]} 8. O-O {[%emt 0:01:59]} exd5 {[%emt 0:00:00]} 9. cxd5 {[%emt 0:00:07]} Bg4 {[%emt 0:00:00]} 10. h3 {[%emt 0:00:52]} Bxf3 {[%emt 0:00:00]} 11. Qxf3 {[%emt 0:00:04]} Nbd7 {[%emt 0:00:00]} 12. Qd1 {[%emt 0:06:29]} a6 {[%emt 0:00:00]} 13. a4 {[%emt 0:01:58]} Rc8 {[%emt 0:00:00] A70: Modern Benoni: 6 e4 g6 7 Nf3.} 14. Re1 {[%emt 0:04:07]} Re8 {[%emt 0:00:00]} 15. Bg5 {[%emt 0:21:47]} c4 {[%emt 0:00:00] The position is equal.} 16. Bc2 {[%emt 0:01:54]} Qc7 {[%emt 0:00:00] [#]} 17. Be3 $146 {[%emt 0:08:09]} ({Predecessor:} 17. a5 Nc5 18. Re3 Nfd7 19. Bf4 Ne5 20. Bxe5 Bxe5 21. f4 Bxf4 22. Rf3 Be5 23. Qf1 {0-1 (61) Gazo,D (1810)-Tomcik,M (2024) Zilina 2014}) 17... Qd8 {[%emt 0:00:00]} 18. Bd4 {[%emt 0:08:14]} Nh5 {[%emt 0:00:00]} 19. Bxg7 {[%emt 0:00:25]} Kxg7 {[%emt 0:00:00]} 20. g3 {[%emt 0:00:37]} Qb6 {[%emt 0:00:00]} 21. Rb1 {[%emt 0:06:23]} (21. a5 {is superior.} Qxb2 22. Qd2) 21... Qc5 $11 {[%emt 0:00:00]} ({But not} 21... Nxg3 22. a5 (22. Qg4 Nxe4 23. Bxe4 Nf6 $16) 22... Qxa5 23. fxg3 $16) 22. Kg2 {[%emt 0:02:46]} b5 {[%emt 0:00:00]} 23. axb5 {[%emt 0:00:09]} axb5 {[%emt 0:00:00]} 24. Ne2 {[%emt 0:02:37]} b4 {[%emt 0:00:00] White must now prevent ...b3.} 25. Ba4 {[%emt 0:01:13]} Nhf6 {[%emt 0:00:00]} 26. Nd4 {[%emt 0:09:57]} (26. f3 $11) 26... Rc7 {[%emt 0:00:00]} (26... Rcd8 $1 $17 27. f3 Nxd5 $1 28. Bxd7 Rxd7) 27. f3 $15 {[%emt 0:08:57]} Ra8 {[%emt 0:00:00][%cal Oa8a4]} 28. Bxd7 {[%emt 0:00:40]} Nxd7 {[%emt 0:00:00]} 29. Nc6 {[%emt 0:00:50] Inhibits Rca7.} Ra2 {[%emt 0:00:00]} 30. Re2 {[%emt 0:00:18]} Ne5 {[%emt 0:00:00]} 31. Nxe5 {[%emt 0:01:36]} dxe5 {[%emt 0:00:00]} 32. Rc1 $2 {[%emt 0:02:31] [#]} ({White should try} 32. g4 $15) 32... Rca7 $2 {[%emt 0:00:00]} (32... c3 $1 $19 33. bxc3 Rca7) 33. Qb3 $2 {[%emt 0:05:24][%mdl 8192]} c3 $19 {[%emt 0:00:00] Threatens to win with ...Ra1.} ({Not} 33... cxb3 34. Rxc5 Rxb2 35. Rxb2 $11) 34. Rcc2 {[%emt 0:00:32]} (34. Rce1 $142 Qd4 35. bxc3 Rxe2+ 36. Rxe2 bxc3 37. Qb1) 34... Ra1 {[%emt 0:00:00][%csl Ga1][%cal Rc5g1,Ba2a1,Ba1b1,Bb1g1][%mdl 32]} 35. Rf2 {[%emt 0:00:08]} Rb1 {[%emt 0:00:00] ( -> ...Raa1)} 36. Rce2 {[%emt 0:01:22]} Raa1 {[%emt 0:00:00] Black mates.} 37. f4 {[%emt 0:00:09]} Rg1+ {[%emt 0:00:00]} 38. Kf3 {[%emt 0:00:06]} cxb2 {[%emt 0:00:00]} 39. Qxb2 {[%emt 0:02:27]} Ra3+ {[%emt 0:00:00] Weighted Error Value: White=0.88/Black=0.12 (very precise)} 0-1

[Event "1st Rio Chess Open 2022"]
[Site "Rio de Janeiro"]
[Date "2022.04.23"]
[Round "5.3"]
[White "Abrantes, Tiago Garrido"]
[Black "Aranha Filho, Alvaro Z."]
[Result "1/2-1/2"]
[ECO "E11"]
[WhiteElo "2178"]
[BlackElo "2226"]
[Annotator "TA"]
[PlyCount "37"]
[EventDate "2022.04.18"]
[EventType "swiss"]
[EventCountry "BRA"]
[SourceTitle "playchess.com"]
[Source "ChessBase"]
[SourceQuality "1"]
[TimeControl "5400+30"]

{[%evp 17,24,41,48,34,36,28,36,40,32]} 1. d4 {[%emt 0:00:40]} Nf6 {[%emt 0:00:19]} 2. c4 {[%emt 0:00:21]} e6 {[%emt 0:00:05]} 3. g3 {[%emt 0:01:58]} Bb4+ {[%emt 0:00:12]} 4. Bd2 {[%emt 0:00:10]} a5 {[%emt 0:00:19]} 5. Bg2 {[%emt 0:01:32]} O-O {[%emt 0:00:41]} 6. Nf3 {[%emt 0:00:59]} d6 {[%emt 0:01:57]} 7. O-O {[%emt 0:01:17]} Bxd2 {[%emt 0:02:31]} 8. Qxd2 {[%emt 0:00:14]} Nbd7 {[%emt 0:00:10]} 9. Nc3 {[%emt 0:00:33]} e5 {[%emt 0:00:23]} 10. h3 {[%emt 0:03:06] E11: Bogo-Indian.} Re8 {[%emt 0:00:35]} 11. e4 {[%emt 0:00:35]} exd4 {[%emt 0:02:41]} 12. Nxd4 {[%emt 0:01:41]} Nc5 {[%emt 0:01:03] [#] Black did not feel at home in the position after the opening.  Weighted Error Value: White=0.07 (flawless) /Black=0.03 (flawless)} {Predecessor:} 13. Rfe1 $146 Ne6 14. Rad1 Nxd4 15. Qxd4 Be6 16. b3 h5 17. f4 h4 18. f5 Bd7 19. g4 {0-1 (54) Hall,D (1722)-Grice,A (1570) Harrogate 2020} 1/2-1/2

[Event "1st Rio Chess Open 2022"]
[Site "Rio de Janeiro"]
[Date "2022.04.24"]
[Round "5.4"]
[White "Alboredo, Julia"]
[Black "Librelato, Kathie Goulart"]
[Result "1/2-1/2"]
[ECO "E11"]
[WhiteElo "2252"]
[BlackElo "2156"]
[Annotator "TA"]
[PlyCount "63"]
[EventDate "2022.04.18"]
[EventType "swiss"]
[EventCountry "BRA"]
[SourceTitle "playchess.com"]
[Source "ChessBase"]
[SourceQuality "1"]
[TimeControl "5400+30"]

{[%evp 24,63,39,35,64,65,60,41,29,38,55,18,12,8,16,16,26,17,16,0,17,0,0,0,0,0,0,0,0,0,0,0,3,-99,-85,-79,0,0,0,0,0,0]} 1. d4 {[%emt 1:31:00]} Nf6 {[%emt 1:31:00]} 2. c4 {[%emt 0:00:30]} e6 {[%emt 0:00:30]} 3. Nf3 {[%emt 0:00:30]} Bb4+ {[%emt 0:00:30]} 4. Bd2 {[%emt 0:00:30]} Qe7 {[%emt 0:00:30]} 5. g3 {[%emt 0:00:30]} Nc6 {[%emt 0:00:30]} 6. Nc3 {[%emt 0:00:30]} O-O {[%emt 0:00:30]} 7. Bg2 {[%emt 0:00:30]} Bxc3 {[%emt 0:00:30]} 8. Bxc3 {[%emt 0:00:30]} Ne4 {[%emt 0:00:30]} 9. Rc1 {[%emt 0:00:30]} d6 {[%emt 0:00:30]} 10. d5 {[%emt 0:00:30]} Nxc3 {[%emt 0:00:30]} 11. Rxc3 {[%emt 0:00:30]} Nb8 {[%emt 0:00:30]} 12. dxe6 {[%emt 0:00:30]} fxe6 {[%emt 0:00:30]} 13. O-O {[%emt 0:00:30][%cal Oc4c5]} Nc6 {[%emt 0:00:30] E11: Bogo-Indian.} 14. Nd4 {[%emt 0:00:30] [#]} Ne5 $146 {[%emt 0:00:30]} ({Predecessor:} 14... Bd7 15. Nc2 Rad8 16. Qd2 b6 17. b4 a5 18. a3 Kh8 19. e4 e5 20. b5 Nb8 {½-½ (38) Nihal,S (2610)-Ivanchuk,V (2684) Leon 2019}) 15. Qc2 {[%emt 0:00:30]} c5 {[%emt 0:00:30] White is slightly better.} 16. Nf3 {[%emt 0:00:30][%cal Bd4f3,Bf3d2,Bd2e4][%mdl 32] Black must now prevent Nxe5.} Nc6 {[%emt 0:00:30]} 17. e3 {[%emt 0:00:30]} Bd7 {[%emt 0:00:30]} 18. a3 {[%emt 0:00:30]} Be8 {[%emt 0:00:30]} 19. Nd2 {[%emt 0:00:30]} Bg6 {[%emt 0:00:30]} 20. Be4 {[%emt 0:00:30]} Bxe4 {[%emt 0:00:30]} 21. Nxe4 {[%emt 0:00:30]} b6 {[%emt 0:00:30]} 22. Rd1 {[%emt 0:00:30]} Rad8 {[%emt 0:00:30]} 23. Rcd3 {[%emt 0:00:30] Prevents d5.} Ne5 {[%emt 0:00:30][%cal Bc6e5,Be5f3,Bf3h2,Bh2g4][%mdl 32]} 24. Rxd6 {[%emt 0:00:30]} Rxd6 {[%emt 0:00:30]} 25. Rxd6 {[%emt 0:00:30]} Nf3+ {[%emt 0:00:30]} 26. Kf1 $1 {[%emt 0:00:30]} Nxh2+ {[%emt 0:00:30]} 27. Ke2 {[%emt 0:00:30]} Qf7 {[%emt 0:00:30]} 28. Kd1 {[%emt 0:00:30]} (28. f4 $11 {remains equal.}) 28... Ng4 $17 {[%emt 0:00:30]} 29. Kc1 {[%emt 0:00:30]} Qf5 {[%emt 0:00:30] Prevents Ng5.} (29... Nxf2 $17 {Hoping for ...Ng4.} 30. Qxf2 Qxf2 31. Nxf2 Rxf2 32. Rxe6 Rg2) 30. Rd2 $11 {[%emt 0:00:30] The position is equal.} h6 {[%emt 0:00:30]} 31. Kb1 {[%emt 0:00:30]} Ne5 {[%emt 0:00:30]} 32. Kc1 {[%emt 0:00:30] Weighted Error Value: White=0.14 (very precise) /Black=0.09 (flawless)} 1/2-1/2

[Event "1st Rio Chess Open 2022"]
[Site "Rio de Janeiro"]
[Date "2022.04.24"]
[Round "5.5"]
[White "Marcolino, Daniel Mattos"]
[Black "Soares, Joao Carlos T. C."]
[Result "0-1"]
[ECO "E05"]
[WhiteElo "2035"]
[BlackElo "2064"]
[Annotator "TA"]
[PlyCount "56"]
[EventDate "2022.04.18"]
[EventType "swiss"]
[EventCountry "BRA"]
[SourceTitle "playchess.com"]
[Source "ChessBase"]
[SourceQuality "1"]
[TimeControl "5400+30"]

{[%evp 13,56,10,13,15,12,9,37,25,44,-140,-129,-118,12,22,29,8,10,-25,24,-33,6,-4,0,-78,-86,-203,-212,-168,-192,-242,-190,-232,-252,-566,-369,-337,-349,-558,-184,-166,-174,-908,808,543,1263]} 1. d4 {[%emt 0:00:04]} Nf6 {[%emt 0:07:47]} 2. Nf3 {[%emt 0:00:05]} e6 {[%emt 0:00:56]} 3. g3 {[%emt 0:00:08]} d5 {[%emt 0:00:06]} 4. Bg2 {[%emt 0:00:10]} Be7 {[%emt 0:00:08]} 5. O-O {[%emt 0:00:07]} O-O {[%emt 0:00:06]} 6. c4 {[%emt 0:00:21]} dxc4 {[%emt 0:00:38]} 7. Qc2 {[%emt 0:00:38]} b5 {[%emt 0:01:54]} 8. a4 {[%emt 0:06:36] E05: Open Catalan: 5 Nf3 Be7.} b4 {[%emt 0:00:27]} 9. Nfd2 {[%emt 0:00:16]} Nd5 $1 {[%emt 0:01:37][%mdl 4] is more profitable than 9...c6 at the moment.} 10. Nxc4 {[%emt 0:02:40] White is slightly better.} Ba6 {[%emt 0:04:34] [#]} 11. e4 $146 {[%emt 0:05:15]} (11. Rd1 $14 {stays ahead.}) ({Predecessor:} 11. Rd1 c5 12. e4 Nf6 13. dxc5 Nbd7 14. c6 Rc8 15. e5 Nd5 16. Ne3 Nxe5 17. Nxd5 exd5 18. Bxd5 {0-1 (61) Iniyan,P (2516)-Ganguly,S (2609) chess24.com INT 2022}) 11... Nb6 $17 {[%emt 0:05:27]} 12. Nxb6 {[%emt 0:03:23]} axb6 {[%emt 0:01:33]} (12... cxb6 $17 13. Rd1 Nc6 $1) 13. Rd1 $1 $11 {[%emt 0:01:00]} Nd7 {[%emt 0:01:52]} 14. Bf4 {[%emt 0:17:17]} c5 {[%emt 0:13:39] aiming for ...cxd4.} 15. dxc5 {[%emt 0:17:20]} bxc5 {[%emt 0:03:02]} (15... Bxc5 {was preferrable.} 16. Qb3 Be2) 16. e5 {[%emt 0:04:07]} (16. h4 $11) 16... Ra7 {[%emt 0:06:06]} 17. h4 {[%emt 0:00:25]} Qc8 {[%emt 0:11:40]} 18. Be4 {[%emt 0:01:24]} (18. Nd2 $11) 18... h6 {[%emt 0:01:08] And now ...g5 would win.} 19. h5 {[%emt 0:02:59] [#]} (19. Bh7+ $17 Kh8 20. Bd3) 19... c4 $1 $19 {[%emt 0:05:20]} 20. Nd2 {[%emt 0:20:08]} Nc5 {[%emt 0:02:20]} 21. Bg2 {[%emt 0:00:42]} (21. Be3 {was necessary.}) 21... Nd3 {[%emt 0:02:48]} 22. Be3 {[%emt 0:03:21]} Rd7 {[%emt 0:08:42]} 23. Nf3 $2 {[%emt 0:00:43]} (23. Ne4 {is more resistant.}) 23... Bc5 {[%emt 0:04:07]} 24. Bxc5 {[%emt 0:02:51]} Qxc5 {[%emt 0:00:21]} 25. b3 {[%emt 0:05:01]} (25. Ne1 {might work better.} Qxe5 26. Nxd3 Rxd3 27. Rab1) 25... cxb3 $2 {[%emt 0:08:38]} (25... c3 26. a5 Rfd8) 26. Qxc5 {[%emt 0:00:12]} Nxc5 {[%emt 0:00:08]} 27. Rd4 $2 {[%emt 0:06:47]} (27. Rxd7 Nxd7 28. Rb1) 27... Rd6 $4 {[%mdl 8192]} 28. Rxd6 {[%emt 0:00:00]} Nd7 {[%emt 0:00:33][%mdl 32768] Never resign too early!  Weighted Error Value: White=0.84/Black=0.53. Loss on time!?} 0-1